bitfinex/quotes_SOLUSD_20250708
["timestamp","ask_amount","ask_price","bid_price","bid_amount"]
[1751968403973,7.46885858,150.62,150.58,12.95533187]
[1751968404172,7.46885858,150.61,150.58,12.95533187]
[1751968404347,0.06,150.63,150.58,12.95533187]
[1751968404549,7.46890374,150.62,150.58,12.95533187]
[1751968404777,7.46890374,150.61,150.58,12.95533187]
[1751968405081,0.06,150.63,150.58,12.95533187]
[1751968405264,7.46903067,150.62,150.58,12.95533187]
[1751968405564,7.46903067,150.61,150.58,12.95533187]
[1751968405770,0.06,150.63,150.58,12.95533187]
[1751968406064,7.46914842,150.62,150.58,12.95533187]
[1751968406270,7.46914842,150.61,150.58,12.95533187]
[1751968406467,0.06,150.63,150.58,12.95533187]
[1751968406667,7.46941368,150.62,150.58,12.95533187]
[1751968406966,7.46941368,150.61,150.58,12.95533187]
[1751968407167,0.06,150.63,150.58,12.95533187]
[1751968407381,7.46943509,150.62,150.58,12.95533187]
[1751968407570,7.46943509,150.61,150.58,12.95533187]
[1751968407867,0.06,150.63,150.58,12.95533187]
[1751968408068,7.46955014,150.62,150.58,12.95533187]
[1751968408284,7.46955014,150.61,150.58,12.95533187]
[1751968408581,0.06,150.63,150.58,12.95533187]
[1751968408772,7.469695,150.62,150.58,12.95533187]
[1751968409072,7.469695,150.61,150.58,12.95533187]
[1751968409382,0.06,150.63,150.58,12.95533187]
[1751968409575,7.46985137,150.62,150.58,12.95533187]
[1751968409801,7.46985137,150.61,150.58,12.95533187]
[1751968409979,0.06,150.63,150.58,12.95533187]
[1751968410273,7.46985137,150.62,150.58,12.95533187]
[1751968410472,7.46985137,150.61,150.58,12.95533187]
[1751968410677,0.06,150.63,150.58,12.95533187]
[1751968410879,7.47001726,150.62,150.58,12.95533187]
[1751968411062,7.47001726,150.61,150.58,12.95533187]
[1751968411263,0.06,150.63,150.58,12.95533187]
[1751968411562,7.47020197,150.62,150.58,12.95533187]
[1751968411762,7.47020197,150.61,150.58,12.95533187]
[1751968411974,0.06,150.63,150.58,12.95533187]
[1751968412175,7.47020197,150.62,150.58,12.95533187]
[1751968412388,7.47020197,150.61,150.58,12.95533187]
[1751968412681,0.06,150.63,150.58,12.95533187]
[1751968412869,7.4704013,150.62,150.58,12.95533187]
[1751968413071,7.4704013,150.61,150.58,12.95533187]
[1751968413280,0.06,150.63,150.58,12.95533187]
[1751968413473,7.4706103,150.62,150.58,12.95533187]
[1751968413665,7.4706103,150.61,150.58,12.95533187]
[1751968413868,0.06,150.63,150.58,12.95533187]
[1751968414086,7.47061225,150.62,150.58,12.95533187]
[1751968414290,7.47061225,150.61,150.58,12.95533187]
[1751968414485,7.47061225,150.6,150.58,12.95533187]
[1751968414682,0.06,150.63,150.58,12.95533187]
[1751968414997,7.47083571,150.62,150.58,12.95533187]
[1751968415293,7.47083571,150.61,150.58,12.95533187]
[1751968415483,7.47083571,150.6,150.58,12.95533187]
[1751968415660,0.06,150.63,150.58,12.95533187]
[1751968415863,7.47133077,150.62,150.58,12.95533187]
[1751968416064,7.47133077,150.61,150.58,12.95533187]
[1751968416262,7.47133077,150.6,150.58,12.95533187]
[1751968416463,0.06,150.63,150.58,12.95533187]
[1751968416663,7.47154579,150.62,150.58,12.95533187]
[1751968416872,7.47154579,150.61,150.58,6.3144]
[1751968417072,7.47154579,150.6,150.58,6.3144]
[1751968417329,6.69880993,150.63,150.58,6.3144]
[1751968417495,7.47177402,150.62,150.58,6.3144]
[1751968417664,7.47177402,150.61,150.58,6.3144]
[1751968417960,7.47177402,150.6,150.58,6.3144]
[1751968418265,6.69880993,150.63,150.58,6.3144]
[1751968418465,7.47196333,150.62,150.58,6.3144]
[1751968418667,7.47196333,150.61,150.58,6.3144]
[1751968418895,7.47196333,150.6,150.58,6.3144]
[1751968419061,6.69880993,150.63,150.58,6.3144]
[1751968419375,7.4722445,150.62,150.58,6.3144]
[1751968419678,7.4722445,150.61,150.58,6.3144]
[1751968419977,7.4722445,150.6,150.58,6.3144]
[1751968420179,6.69880993,150.63,150.58,6.3144]
[1751968420489,7.47253276,150.62,150.57,89.2]
[1751968420696,7.47253276,150.61,150.57,89.2]
[1751968420867,7.47253276,150.6,150.57,89.2]
[1751968421069,7.47253276,150.59,150.56,1842.7454363]
[1751968421275,7.47253276,150.58,150.56,1842.7454363]
[1751968421578,7.47253276,150.57,150.56,1842.7454363]
[1751968422595,14.11396199,150.57,150.56,1842.7454363]
[1751968423185,7.47253276,150.57,150.56,1842.7454363]
[1751968427694,25.2894917,150.61,150.56,1842.7454363]
[1751968427995,7.45904323,150.6,150.56,1842.7454363]
[1751968428295,7.45904323,150.59,150.56,1842.7454363]
[1751968428499,7.45904323,150.58,150.56,1842.7454363]
[1751968428800,25.2894917,150.61,150.56,1842.7454363]
[1751968428982,7.45756766,150.6,150.56,1842.7454363]
[1751968429172,7.45756766,150.59,150.56,1842.7454363]
[1751968429376,7.45756766,150.58,150.56,1842.7454363]
[1751968429589,25.2894917,150.61,150.56,1842.7454363]
[1751968429786,7.45681796,150.6,150.56,1842.7454363]
[1751968429987,7.45681796,150.59,150.56,1842.7454363]
[1751968430188,25.2894917,150.61,150.56,1842.7454363]
[1751968430189,7.45681796,150.58,150.56,1842.7454363]
[1751968430397,25.2894917,150.61,150.56,1842.7454363]
[1751968430574,7.45629233,150.6,150.56,1842.7454363]
[1751968430774,7.45629233,150.59,150.56,1842.7454363]
[1751968430983,25.2894917,150.61,150.56,1842.7454363]
[1751968431189,7.45629135,150.6,150.56,1842.7454363]
[1751968431392,7.45629135,150.59,150.56,1842.7454363]
[1751968431574,25.2894917,150.61,150.56,1842.7454363]
[1751968431778,7.45583777,150.6,150.56,1842.7454363]
[1751968431994,7.45583777,150.59,150.56,1842.7454363]
[1751968432180,25.2894917,150.61,150.56,1842.7454363]
[1751968432380,7.45583774,150.6,150.56,1842.7454363]
[1751968432581,7.45583774,150.59,150.56,1842.7454363]
[1751968432791,25.2894917,150.61,150.56,1842.7454363]
[1751968432987,7.45542758,150.6,150.56,1842.7454363]
[1751968433282,7.45542758,150.59,150.56,1842.7454363]
[1751968433581,25.2894917,150.61,150.56,1842.7454363]
[1751968433900,7.45505702,150.6,150.56,1842.7454363]
[1751968434082,7.45505702,150.59,150.56,1842.7454363]
[1751968434282,25.2894917,150.61,150.56,1842.7454363]
[1751968434504,7.45472717,150.6,150.56,1842.7454363]
[1751968434678,7.45472717,150.59,150.56,1842.7454363]
[1751968434879,6.6401169,150.6,150.56,1842.7454363]
[1751968435079,7.45463238,150.59,150.56,1842.7454363]
[1751968435280,6.6401169,150.6,150.56,1842.7454363]
[1751968435484,7.45445082,150.59,150.56,1842.7454363]
[1751968435682,18.64964886,150.6,150.56,1842.7454363]
[1751968435896,7.45445179,150.59,150.56,1842.7454363]
[1751968436100,18.64964886,150.6,150.56,1842.7454363]
[1751968436291,7.45445082,150.59,150.56,1842.7454363]
[1751968436490,18.64964886,150.6,150.56,1842.7454363]
[1751968436781,7.4543001,150.59,150.56,1842.7454363]
[1751968436981,18.64964886,150.6,150.56,1842.7454363]
[1751968437203,7.45429912,150.59,150.56,1842.7454363]
[1751968437391,18.64964886,150.6,150.56,1842.7454363]
[1751968437590,7.45417482,150.59,150.56,1842.7454363]
[1751968437794,18.64964886,150.6,150.56,1842.7454363]
[1751968438091,7.45417482,150.59,150.56,1842.7454363]
[1751968438404,18.64964886,150.6,150.56,1876.2054363]
[1751968438596,7.45407853,150.59,150.56,1876.2054363]
[1751968438795,18.64964886,150.6,150.56,1876.2054363]
[1751968438998,7.45407853,150.59,150.56,1876.2054363]
[1751968439201,18.64964886,150.6,150.56,1876.2054363]
[1751968439400,7.45407853,150.59,150.56,1876.2054363]
[1751968439585,18.64964886,150.6,150.56,1876.2054363]
[1751968439787,7.4540108,150.59,150.56,1876.2054363]
[1751968439985,18.64964886,150.6,150.56,1876.2054363]
[1751968440193,7.4540108,150.59,150.56,1876.2054363]
[1751968440395,18.64964886,150.6,150.56,1876.2054363]
[1751968440692,7.45383568,150.59,150.56,1876.2054363]
[1751968440892,18.64964886,150.6,150.56,1876.2054363]
[1751968441099,7.45383471,150.59,150.56,1876.2054363]
[1751968441293,0.06,150.59,150.56,1876.2054363]
[1751968442406,0.06,150.59,150.56,1882.84718136]
[1751968442603,0.06,150.59,150.57,1.5827]
[1751968442793,0.06,150.59,150.58,33.46]
[1751968443310,0.06,150.59,150.58,40.10098817]
[1751968454391,0.06,150.59,150.57,89.2]
[1751968460018,0.06,150.59,150.56,1842.7454363]
[1751968460519,0.06,150.59,150.56,1849.38725672]
[1751968460898,0.06,150.59,150.57,33.46]
[1751968461098,0.06,150.59,150.56,1882.84725672]
[1751968461298,0.06,150.59,150.56,1876.2054363]
[1751968464119,0.06,150.59,150.56,1882.84721516]
[1751968469426,7.45741489,150.58,150.56,1882.84721516]
[1751968470121,0.06,150.59,150.56,1882.84721516]
[1751968470640,7.45806096,150.58,150.56,1882.84721516]
[1751968470926,0.06,150.59,150.56,1882.84721516]
[1751968471102,7.45822127,150.58,150.56,1882.84721516]
[1751968471299,0.06,150.59,150.56,1882.84721516]
[1751968471530,7.45865715,150.58,150.56,1882.84721516]
[1751968471716,0.06,150.59,150.56,1882.84721516]
[1751968471911,7.45865715,150.58,150.56,1882.84721516]
[1751968472117,0.06,150.59,150.56,1876.2054363]
[1751968472323,0.06,150.59,150.56,1882.84727241]
[1751968473549,0.06,150.59,150.57,33.46]
[1751968474226,0.06,150.59,150.57,40.1014007]
[1751968476633,26.06,150.59,150.56,1842.7454363]
[1751968476819,7.46120074,150.58,150.56,1842.7454363]
[1751968477133,7.46120074,150.57,150.56,1842.7454363]
[1751968477546,26.06,150.59,150.56,1842.7454363]
[1751968477711,7.4606962,150.58,150.56,1842.7454363]
[1751968477911,26.06,150.59,150.56,1842.7454363]
[1751968478106,7.4606962,150.58,150.56,1842.7454363]
[1751968478307,26.06,150.59,150.56,1842.7454363]
[1751968478534,7.46100566,150.58,150.56,1842.7454363]
[1751968478743,7.46100566,150.57,150.56,1842.7454363]
[1751968480936,7.46028896,150.57,150.56,1842.7454363]
[1751968481149,26.06,150.59,150.56,1842.7454363]
[1751968481338,7.46000602,150.58,150.56,1842.7454363]
[1751968481539,26.06,150.59,150.56,1842.7454363]
[1751968481847,7.4598677,150.58,150.56,1842.7454363]
[1751968482039,7.4598677,150.57,150.56,1842.7454363]
[1751968482546,26.06,150.59,150.56,1842.7454363]
[1751968482740,7.45940754,150.58,150.56,1842.7454363]
[1751968483043,26.06,150.59,150.56,1842.7454363]
[1751968483247,7.45956544,150.58,150.56,1842.7454363]
[1751968483448,26.06,150.59,150.56,1842.7454363]
[1751968483648,7.45946645,150.58,150.56,1842.7454363]
[1751968483950,26.06,150.59,150.56,1842.7454363]
[1751968484248,7.45946645,150.58,150.56,1842.7454363]
[1751968484546,26.06,150.59,150.56,1842.7454363]
[1751968484740,7.45936892,150.58,150.56,1842.7454363]
[1751968484934,26.06,150.59,150.56,1842.7454363]
[1751968485132,7.45936892,150.58,150.56,1842.7454363]
[1751968485450,26.06,150.59,150.56,1842.7454363]
[1751968485649,7.45943023,150.58,150.56,1842.7454363]
[1751968485829,26.06,150.59,150.56,1842.7454363]
[1751968486030,7.45943023,150.58,150.56,1842.7454363]
[1751968486239,26.06,150.59,150.56,1842.7454363]
[1751968486555,26.06,150.59,150.56,1849.38722372]
[1751968486556,7.45948799,150.58,150.56,1849.38722372]
[1751968486729,0.06,150.59,150.57,33.52]
[1751968487430,0.06,150.59,150.57,40.16133027]
[1751968495065,0.06,150.59,150.57,33.52]
[1751968504548,0.06,150.59,150.56,1882.88717163]
[1751968507883,7.4672616,150.58,150.56,1876.2454363]
[1751968508168,0.06,150.59,150.56,1876.2454363]
[1751968508468,7.46708337,150.58,150.56,1876.2454363]
[1751968508660,0.06,150.59,150.56,1876.2454363]
[1751968508862,7.46708337,150.58,150.56,1876.2454363]
[1751968509048,0.06,150.59,150.56,1876.2454363]
[1751968509241,7.46708337,150.58,150.56,1876.2454363]
[1751968509445,0.06,150.59,150.56,1876.2454363]
[1751968509661,7.46721171,150.58,150.56,1876.2454363]
[1751968509867,0.06,150.59,150.56,1876.2454363]
[1751968510067,7.4672127,150.58,150.56,1876.2454363]
[1751968510244,0.06,150.59,150.56,1876.2454363]
[1751968510564,7.4670178,150.58,150.56,1876.2454363]
[1751968510765,0.06,150.59,150.56,1876.2454363]
[1751968510937,7.4670178,150.58,150.56,1876.2454363]
[1751968511138,0.06,150.59,150.56,1876.2454363]
[1751968511359,7.46702223,150.58,150.56,1876.2454363]
[1751968511656,0.06,150.59,150.56,1876.2454363]
[1751968511875,7.46702223,150.58,150.56,1876.2454363]
[1751968512170,0.06,150.59,150.56,1876.2454363]
[1751968512353,7.46702783,150.58,150.56,1876.2454363]
[1751968512554,0.06,150.59,150.56,1876.2454363]
[1751968512854,7.46702881,150.58,150.56,1876.2454363]
[1751968513046,0.06,150.59,150.56,1876.2454363]
[1751968513245,7.46702881,150.58,150.56,1876.2454363]
[1751968513446,0.06,150.59,150.56,1876.2454363]
[1751968513654,7.4670343,150.58,150.56,1876.2454363]
[1751968513860,0.06,150.59,150.56,1876.2454363]
[1751968514062,7.46703528,150.58,150.56,1876.2454363]
[1751968514257,0.06,150.59,150.56,1876.2454363]
[1751968514450,7.46704289,150.58,150.56,1876.2454363]
[1751968514648,0.06,150.59,150.56,1876.2454363]
[1751968514848,7.46704191,150.58,150.56,1876.2454363]
[1751968515071,0.06,150.59,150.56,1876.2454363]
[1751968515367,7.46724049,150.58,150.56,1876.2454363]
[1751968515761,0.06,150.59,150.56,1876.2454363]
[1751968516568,7.4670611,150.58,150.56,1876.2454363]
[1751968516778,0.06,150.59,150.56,1876.2454363]
[1751968517065,7.4670611,150.58,150.56,1876.2454363]
[1751968517264,0.06,150.59,150.56,1876.2454363]
[1751968517563,7.46707208,150.58,150.56,1876.2454363]
[1751968517866,0.06,150.59,150.56,1876.2454363]
[1751968518054,7.46707208,150.58,150.56,1876.2454363]
[1751968518254,0.06,150.59,150.56,1876.2454363]
[1751968518457,7.46709707,150.58,150.56,1876.2454363]
[1751968518674,0.06,150.59,150.56,1876.2454363]
[1751968518974,7.46709707,150.58,150.56,1876.2454363]
[1751968519157,0.06,150.59,150.56,1876.2454363]
[1751968519360,7.46712389,150.58,150.56,1876.2454363]
[1751968519559,0.06,150.59,150.56,1876.2454363]
[1751968519759,7.46712488,150.58,150.56,1876.2454363]
[1751968519960,0.06,150.59,150.56,1876.2454363]
[1751968520161,7.46712389,150.58,150.56,1876.2454363]
[1751968520462,0.06,150.59,150.56,1876.2454363]
[1751968520650,7.46715295,150.58,150.56,1876.2454363]
[1751968520845,0.06,150.59,150.56,1876.2454363]
[1751968521050,7.46715197,150.58,150.56,1876.2454363]
[1751968521256,0.06,150.59,150.56,1876.2454363]
[1751968521476,7.46718243,150.58,150.56,1876.2454363]
[1751968521673,0.06,150.59,150.56,1876.2454363]
[1751968521977,7.46718145,150.58,150.56,1876.2454363]
[1751968522183,0.06,150.59,150.56,1876.2454363]
[1751968522348,7.4675858,150.58,150.56,1876.2454363]
[1751968522551,0.06,150.59,150.56,1876.2454363]
[1751968522775,7.4675858,150.58,150.56,1876.2454363]
[1751968523069,0.06,150.59,150.56,1876.2454363]
[1751968523275,7.4675858,150.58,150.56,1876.2454363]
[1751968523468,0.06,150.59,150.56,1876.2454363]
[1751968523776,7.46783177,150.58,150.56,1876.2454363]
[1751968523959,0.06,150.59,150.56,1876.2454363]
[1751968524161,7.46783177,150.58,150.56,1876.2454363]
[1751968524361,0.06,150.59,150.56,1876.2454363]
[1751968524559,7.46839657,150.58,150.56,1876.2454363]
[1751968524762,0.06,150.59,150.56,1876.2454363]
[1751968524964,7.46839657,150.58,150.56,1876.2454363]
[1751968525155,0.06,150.59,150.56,1876.2454363]
[1751968525356,7.4695837,150.58,150.56,1876.2454363]
[1751968525570,0.06,150.59,150.56,1876.2454363]
[1751968525770,7.4695837,150.58,150.56,1876.2454363]
[1751968525970,0.06,150.59,150.56,1876.2454363]
[1751968526281,7.4695837,150.58,150.56,1876.2454363]
[1751968526456,0.06,150.59,150.56,1876.2454363]
[1751968526656,7.47004088,150.58,150.56,1876.2454363]
[1751968526869,0.06,150.59,150.56,1876.2454363]
[1751968527166,7.4700399,150.58,150.56,1876.2454363]
[1751968527469,0.06,150.59,150.56,1876.2454363]
[1751968527669,7.4710998,150.58,150.56,1876.2454363]
[1751968527876,0.06,150.59,150.56,1876.2454363]
[1751968528078,7.4710998,150.58,150.56,1876.2454363]
[1751968528283,0.06,150.59,150.56,1876.2454363]
[1751968528459,7.47169027,150.58,150.57,33.46]
[1751968540893,7.47169027,150.58,150.56,1882.84724976]
[1751968541190,7.47169027,150.57,150.56,1882.84724976]
[1751968551497,0.06,150.59,150.56,1882.84724976]
[1751968551677,7.48013059,150.58,150.56,1882.84724976]
[1751968551876,7.48013059,150.57,150.56,1882.84724976]
[1751968557313,0.06,150.59,150.56,1988.65192563]
[1751968557515,0.06,150.59,150.57,1.6087]
[1751968557810,0.06,150.59,150.58,33.46]
[1751968559412,0.06,150.59,150.58,40.10098817]
[1751968560206,1e-08,150.59,150.58,147.95063703]
[1751968560515,1e-08,150.59,150.58,153.97193703]
[1751968560805,1e-08,150.59,150.58,160.79193703]
[1751968563612,0.06,150.63,150.59,107.84964885]
[1751968563911,0.06,150.63,150.6,33.46]
[1751968564616,0.06,150.63,150.61,6.63966536]
[1751968564790,0.06,150.63,150.62,33.46]
[1751968566394,0.06,150.63,150.62,40.09922453]
[1751968569613,0.06,150.63,150.62,129.29922452]
[1751968571497,0.06,150.63,150.62,89.19999999]
[1751968571695,7.48924011,150.63,150.58,0.03]
[1751968571897,7.42924011,150.62,150.58,0.03]
[1751968572097,7.42924011,150.61,150.58,0.03]
[1751968572303,7.42924011,150.6,150.58,0.03]
[1751968572502,7.42924011,150.59,150.58,0.03]
[1751968573128,0.06,150.63,150.58,0.03]
[1751968573423,7.43136788,150.62,150.58,0.03]
[1751968573605,7.43136788,150.61,150.58,0.03]
[1751968573924,6.69886025,150.63,150.58,0.03]
[1751968573925,7.43136788,150.6,150.58,0.03]
[1751968574091,6.69886025,150.63,150.58,0.03]
[1751968574296,7.43103663,150.62,150.58,0.03]
[1751968574495,7.43103663,150.61,150.58,0.03]
[1751968574697,6.69886025,150.63,150.58,0.03]
[1751968574906,7.43157527,150.62,150.58,0.03]
[1751968575221,7.43157527,150.61,150.58,0.03]
[1751968575423,18.70964886,150.63,150.58,0.03]
[1751968575735,7.43178395,150.62,150.58,0.03]
[1751968575923,7.43178395,150.61,150.58,0.03]
[1751968576102,18.70964886,150.63,150.58,0.03]
[1751968576412,7.43147135,150.62,150.58,0.03]
[1751968576615,7.43147135,150.61,150.58,0.03]
[1751968576814,18.70964886,150.63,150.58,0.03]
[1751968577007,7.43199568,150.62,150.58,0.03]
[1751968577213,7.43199568,150.61,150.58,0.03]
[1751968577434,18.70964886,150.63,150.58,0.03]
[1751968577604,7.43221228,150.62,150.58,0.03]
[1751968577802,7.43221228,150.61,150.58,0.03]
[1751968578034,25.34852136,150.63,150.58,0.03]
[1751968578239,7.43221228,150.62,150.58,0.03]
[1751968578423,7.43221228,150.61,150.58,0.03]
[1751968578628,6.69883087,150.63,150.58,0.03]
[1751968578843,7.43243443,150.62,150.58,0.03]
[1751968579140,7.43243443,150.61,150.58,0.03]
[1751968579335,0.06,150.63,150.58,0.03]
[1751968579512,7.43266155,150.62,150.58,0.03]
[1751968579712,7.43266155,150.61,150.58,0.03]
[1751968580026,0.06,150.63,150.58,0.03]
[1751968580229,7.43266155,150.62,150.58,0.03]
[1751968580526,7.43266155,150.61,150.58,0.03]
[1751968580725,0.06,150.63,150.58,0.03]
[1751968580923,7.43289441,150.62,150.58,0.03]
[1751968581125,7.43289441,150.61,150.58,0.03]
[1751968581449,0.06,150.63,150.58,0.03]
[1751968581747,7.43313237,150.62,150.58,0.03]
[1751968582041,7.43313237,150.61,150.58,0.03]
[1751968582210,0.06,150.63,150.58,0.03]
[1751968582416,7.43337524,150.62,150.58,0.03]
[1751968582722,7.43337524,150.61,150.58,0.03]
[1751968582906,0.06,150.63,150.58,0.03]
[1751968583113,7.43337524,150.62,150.58,0.03]
[1751968583339,7.43337524,150.61,150.58,0.03]
[1751968583536,0.06,150.63,150.58,0.03]
[1751968583751,7.43361551,150.62,150.58,0.03]
[1751968583923,7.43361551,150.61,150.58,0.03]
[1751968584124,0.06,150.63,150.58,0.03]
[1751968584326,7.4338605,150.62,150.58,0.03]
[1751968584513,7.4338605,150.61,150.58,0.03]
[1751968584713,0.06,150.63,150.58,0.03]
[1751968584943,7.4338605,150.62,150.58,0.03]
[1751968585131,7.4338605,150.61,150.58,0.03]
[1751968585444,0.06,150.63,150.58,0.03]
[1751968585744,7.43411114,150.62,150.58,0.03]
[1751968585918,7.43411114,150.61,150.58,0.03]
[1751968586235,0.06,150.63,150.58,0.03]
[1751968586436,7.43436758,150.62,150.58,0.03]
[1751968586623,7.43436758,150.61,150.58,0.03]
[1751968586822,0.06,150.63,150.58,0.03]
[1751968587027,7.43436758,150.62,150.58,0.03]
[1751968587232,7.43436758,150.61,150.58,0.03]
[1751968587452,0.06,150.63,150.58,0.03]
[1751968587620,7.43463086,150.62,150.58,0.03]
[1751968587817,7.43463086,150.61,150.58,0.03]
[1751968588039,0.06,150.63,150.58,0.03]
[1751968588249,7.4340055,150.62,150.58,0.03]
[1751968588423,0.06,150.63,150.58,0.03]
[1751968588751,7.43458776,150.62,150.58,0.03]
[1751968589040,0.06,150.63,150.58,0.03]
[1751968589234,7.43458776,150.62,150.58,0.03]
[1751968589439,0.06,150.63,150.58,0.03]
[1751968589618,7.43495975,150.62,150.58,0.03]
[1751968589818,0.06,150.63,150.58,0.03]
[1751968590143,7.43495877,150.62,150.58,0.03]
[1751968590347,0.06,150.63,150.58,89.22999999]
[1751968590639,7.43534557,150.62,150.58,122.68999999]
[1751968590833,0.06,150.63,150.58,122.68999999]
[1751968591034,7.43524908,150.62,150.58,122.68999999]
[1751968591215,0.06,150.63,150.58,122.68999999]
[1751968591411,7.43567648,150.62,150.59,6.64054718]
[1751968591615,0.06,150.63,150.59,6.64054718]
[1751968591919,0.06,150.62,150.59,6.64054718]
[1751968592721,44.70964886,150.62,150.58,0.03]
[1751968592921,7.43698213,150.61,150.58,0.03]
[1751968593130,7.43698213,150.6,150.58,0.03]
[1751968593325,44.70964886,150.62,150.58,0.03]
[1751968593540,7.43700808,150.61,150.58,0.03]
[1751968593736,7.43700808,150.6,150.58,0.03]
[1751968593940,0.06,150.62,150.58,0.03]
[1751968594150,7.43700613,150.61,150.58,0.03]
[1751968594360,7.43700613,150.6,150.58,0.03]
[1751968594536,0.06,150.62,150.58,0.03]
[1751968594735,7.43682449,150.61,150.58,0.03]
[1751968595043,0.06,150.62,150.58,0.03]
[1751968595252,7.43682449,150.61,150.58,0.03]
[1751968595435,0.06,150.62,150.58,0.03]
[1751968595638,7.43709238,150.61,150.58,0.03]
[1751968595833,0.06,150.62,150.58,0.03]
[1751968596041,7.43699684,150.61,150.58,0.03]
[1751968596226,0.06,150.62,150.58,0.03]
[1751968596426,7.43733655,150.61,150.58,0.03]
[1751968596654,0.06,150.62,150.58,0.03]
[1751968596856,7.43733655,150.61,150.58,0.03]
[1751968597031,0.06,150.62,150.58,0.03]
[1751968597229,7.43733655,150.61,150.58,0.03]
[1751968597439,0.06,150.62,150.58,0.03]
[1751968611268,7.50979654,150.62,150.58,0.03]
[1751968614262,0.06,150.62,150.58,0.03]
[1751968615274,7.46429341,150.61,150.58,0.03]
[1751968615442,0.06,150.62,150.58,0.03]
[1751968615641,7.46429341,150.61,150.58,0.03]
[1751968615867,0.06,150.62,150.58,0.03]
[1751968616043,7.46429341,150.61,150.58,0.03]
[1751968616238,7.47255385,150.6,150.58,0.03]
[1751968616443,0.06,150.62,150.58,0.03]
[1751968616757,7.47255287,150.61,150.58,0.03]
[1751968616949,7.47255287,150.6,150.58,0.03]
[1751968617143,0.06,150.62,150.58,0.03]
[1751968617339,7.47253383,150.61,150.58,0.03]
[1751968617546,7.47253383,150.6,150.58,0.03]
[1751968617765,0.06,150.62,150.58,0.03]
[1751968618068,7.47253383,150.61,150.58,0.03]
[1751968618370,7.47253383,150.6,150.58,0.03]
[1751968618567,0.06,150.62,150.58,0.03]
[1751968618743,7.47251639,150.61,150.58,0.03]
[1751968618944,7.47251639,150.6,150.58,0.03]
[1751968619140,0.06,150.62,150.58,0.03]
[1751968619344,7.47250031,150.61,150.58,0.03]
[1751968619552,7.47250031,150.6,150.58,0.03]
[1751968619764,0.06,150.62,150.58,0.03]
[1751968619966,7.47250227,150.61,150.58,0.03]
[1751968620159,7.47250227,150.6,150.58,0.03]
[1751968620350,0.06,150.62,150.58,0.03]
[1751968620550,7.47241979,150.61,150.58,0.03]
[1751968620751,7.47241979,150.6,150.58,0.03]
[1751968620950,0.06,150.62,150.58,0.03]
[1751968621151,7.47241783,150.61,150.58,0.03]
[1751968621366,7.47241783,150.6,150.58,0.03]
[1751968621672,0.06,150.62,150.58,0.03]
[1751968621877,7.47240132,150.61,150.58,0.03]
[1751968622066,7.47240132,150.6,150.58,0.03]
[1751968622270,0.06,150.62,150.58,0.03]
[1751968622460,7.47238574,150.61,150.58,0.03]
[1751968622662,7.47238574,150.6,150.58,0.03]
[1751968622850,0.06,150.62,150.58,0.03]
[1751968623050,7.47238574,150.61,150.58,0.03]
[1751968623250,7.47238574,150.6,150.58,0.03]
[1751968623465,0.06,150.62,150.58,0.03]
[1751968623669,7.4723712,150.61,150.58,0.03]
[1751968623876,7.4723712,150.6,150.58,0.03]
[1751968624166,0.06,150.62,150.58,0.03]
[1751968624368,7.47228395,150.61,150.58,0.03]
[1751968624563,7.47228395,150.6,150.58,0.03]
[1751968624775,0.06,150.62,150.58,0.03]
[1751968624987,7.47236041,150.61,150.58,0.03]
[1751968625179,7.47236041,150.6,150.58,0.03]
[1751968625351,0.06,150.62,150.58,0.03]
[1751968625550,7.47234583,150.61,150.58,0.03]
[1751968625753,7.47234583,150.6,150.58,0.03]
[1751968625960,0.06,150.62,150.58,0.03]
[1751968626166,7.47234779,150.61,150.58,0.03]
[1751968626467,7.47234779,150.6,150.58,0.03]
[1751968626768,0.06,150.62,150.58,0.03]
[1751968627078,7.47233448,150.61,150.58,0.03]
[1751968627279,7.47233448,150.6,150.58,0.03]
[1751968627502,0.06,150.62,150.58,0.03]
[1751968627660,7.47232392,150.61,150.58,0.03]
[1751968627858,7.47232392,150.6,150.58,0.03]
[1751968628080,0.06,150.62,150.58,0.03]
[1751968628285,7.47232589,150.61,150.58,0.03]
[1751968628454,7.47232589,150.6,150.58,0.03]
[1751968628654,0.06,150.62,150.58,0.03]